[Event "Titled Tuesday Blitz March 28 Late 2023"]
[White "Kovalev, Vladislav"]
[Black "Ozates, Tuna"]
[WhiteFideId "13504398"]
[BlackFideId "6354521"]
[WhiteElo "2555"]
[BlackElo "2151"]
[Result "1-0"]
[Round "03"]
[TimeControl "180+2"]
[Date "2023.03.28"]
[WhiteClock "0:00:06"]
[BlackClock "0:00:01"]

1. e4 {[%clk 0:03:00]}  c5 {[%clk 0:02:59]} 2. Nf3 {[%clk 0:03:00]}  Nc6 {[%clk 0:02:56]} 3. Nc3 {[%clk 0:02:58]}  d6 {[%clk 0:02:52]} 4. d4 {[%clk 0:02:58]}  cxd4 {[%clk 0:02:53]} 5. Nxd4 {[%clk 0:02:59]}  e5 {[%clk 0:02:53]} 6. Nf5 {[%clk 0:02:56]}  Bxf5 {[%clk 0:02:45]} 7. exf5 {[%clk 0:02:57]}  Nge7 {[%clk 0:02:44]} 8. g4 {[%clk 0:02:48]}  h5 {[%clk 0:02:36]} 9. f6 {[%clk 0:01:55]}  gxf6 {[%clk 0:02:36]} 10. Ne4 {[%clk 0:01:56]}  Ng6 {[%clk 0:02:27]} 11. gxh5 {[%clk 0:01:54]}  d5 {[%clk 0:02:20]} 12. hxg6 {[%clk 0:01:55]}  dxe4 {[%clk 0:02:20]} 13. gxf7+ {[%clk 0:01:55]}  Kxf7 {[%clk 0:02:16]} 14. Bc4+ {[%clk 0:01:55]}  Ke7 {[%clk 0:02:11]} 15. Qg4 {[%clk 0:01:43]}  Nd4 {[%clk 0:01:36]} 16. Qxe4 {[%clk 0:01:43]}  Rh4 {[%clk 0:01:29]} 17. Qxh4 {[%clk 0:01:35]}  Nf3+ {[%clk 0:01:28]} 18. Ke2 {[%clk 0:01:34]}  Nxh4 {[%clk 0:01:27]} 19. Be3 {[%clk 0:01:34]}  Qc8 {[%clk 0:01:19]} 20. Bd3 {[%clk 0:01:24]}  Qg4+ {[%clk 0:01:16]} 21. Kd2 {[%clk 0:01:23]}  Rc8 {[%clk 0:01:00]} 22. Rad1 {[%clk 0:01:20]}  Nf3+ {[%clk 0:00:39]} 23. Kc1 {[%clk 0:01:20]}  Nd4 {[%clk 0:00:38]} 24. Kb1 {[%clk 0:01:05]}  b6 {[%clk 0:00:27]} 25. h4 {[%clk 0:01:01]}  Nf5 {[%clk 0:00:22]} 26. Rdg1 {[%clk 0:00:53]}  Qh5 {[%clk 0:00:20]} 27. Bd2 {[%clk 0:00:50]}  Bh6 {[%clk 0:00:19]} 28. Bxf5 {[%clk 0:00:44]}  Qxf5 {[%clk 0:00:16]} 29. Bxh6 {[%clk 0:00:45]}  Rxc2 {[%clk 0:00:15]} 30. Ka1 {[%clk 0:00:45]}  Qxf2 {[%clk 0:00:15]} 31. Bc1 {[%clk 0:00:45]}  Rc8 {[%clk 0:00:13]} 32. h5 {[%clk 0:00:46]}  Rh8 {[%clk 0:00:13]} 33. h6 {[%clk 0:00:46]}  e4 {[%clk 0:00:13]} 34. h7 {[%clk 0:00:43]}  Ke6 {[%clk 0:00:13]} 35. Rg8 {[%clk 0:00:40]}  Rxh7 {[%clk 0:00:05]} 36. Rxh7 {[%clk 0:00:41]}  Qe1 {[%clk 0:00:05]} 37. Rc7 {[%clk 0:00:39]}  f5 {[%clk 0:00:04]} 38. a3 {[%clk 0:00:36]}  f4 {[%clk 0:00:05]} 39. Ka2 {[%clk 0:00:28]}  e3 {[%clk 0:00:05]} 40. Rc4 {[%clk 0:00:21]}  Qf1 {[%clk 0:00:02]} 41. Re8+ {[%clk 0:00:17]}  Kd5 {[%clk 0:00:02]} 42. Ree4 {[%clk 0:00:17]}  e2 {[%clk 0:00:03]} 43. Rcd4+ {[%clk 0:00:17]}  Kc6 {[%clk 0:00:03]} 44. Re6+ {[%clk 0:00:16]}  Kb7 {[%clk 0:00:03]} 45. Rd7+ {[%clk 0:00:16]}  Ka6 {[%clk 0:00:03]} 46. Bd2 {[%clk 0:00:12]}  Qf3 {[%clk 0:00:01]} 47. Ree7 {[%clk 0:00:09]}  Kb5 {[%clk 0:00:01]} 48. Re5+ {[%clk 0:00:05]}  Kc6 {[%clk 0:00:01]} 49. Rde7 {[%clk 0:00:06]} 1-0


[Site "https://www.chess.com"]

[Event "Titled Tuesday Blitz March 28 Late 2023"]
[White "Zhang, Derek"]
[Black "Bernadskiy, Vitaliy"]
[WhiteFideId "2087871"]
[BlackFideId "14100371"]
[WhiteElo "2087"]
[BlackElo "2488"]
[Result "0-1"]
[Round "03"]
[TimeControl "180+2"]
[Date "2023.03.28"]
[WhiteClock "0:00:09"]
[BlackClock "0:00:09"]

1. Nf3 {[%clk 0:03:00]}  g6 {[%clk 0:02:58]} 2. c4 {[%clk 0:03:01]}  Bg7 {[%clk 0:02:58]} 3. Nc3 {[%clk 0:03:02]}  Nf6 {[%clk 0:02:57]} 4. e4 {[%clk 0:03:02]}  O-O {[%clk 0:02:57]} 5. d4 {[%clk 0:03:03]}  d6 {[%clk 0:02:57]} 6. h3 {[%clk 0:03:03]}  c6 {[%clk 0:02:55]} 7. Be3 {[%clk 0:03:02]}  Na6 {[%clk 0:02:51]} 8. Bd3 {[%clk 0:03:00]}  e5 {[%clk 0:02:51]} 9. d5 {[%clk 0:03:00]}  Nc5 {[%clk 0:02:41]} 10. Bc2 {[%clk 0:02:58]}  cxd5 {[%clk 0:02:40]} 11. cxd5 {[%clk 0:02:58]}  a5 {[%clk 0:02:36]} 12. a3 {[%clk 0:02:55]}  Bd7 {[%clk 0:02:00]} 13. b4 {[%clk 0:02:54]}  axb4 {[%clk 0:01:59]} 14. axb4 {[%clk 0:02:55]}  Rxa1 {[%clk 0:01:59]} 15. Qxa1 {[%clk 0:02:56]}  Na6 {[%clk 0:01:58]} 16. Qb2 {[%clk 0:02:55]}  Qc7 {[%clk 0:01:56]} 17. Bd3 {[%clk 0:02:49]}  Rc8 {[%clk 0:01:55]} 18. Bd2 {[%clk 0:02:50]}  Qb6 {[%clk 0:01:51]} 19. Bxa6 {[%clk 0:02:47]}  bxa6 {[%clk 0:01:50]} 20. O-O {[%clk 0:02:47]}  Rc4 {[%clk 0:01:48]} 21. Be3 {[%clk 0:02:07]}  Qxb4 {[%clk 0:01:45]} 22. Qxb4 {[%clk 0:02:05]}  Rxb4 {[%clk 0:01:46]} 23. Ra1 {[%clk 0:02:05]}  Rc4 {[%clk 0:01:34]} 24. Bd2 {[%clk 0:01:54]}  Bc8 {[%clk 0:01:33]} 25. Na4 {[%clk 0:01:41]}  Rxe4 {[%clk 0:01:21]} 26. Nb6 {[%clk 0:01:40]}  Bb7 {[%clk 0:01:21]} 27. Rb1 {[%clk 0:01:34]}  h6 {[%clk 0:01:11]} 28. Bb4 {[%clk 0:01:11]}  Bf8 {[%clk 0:01:03]} 29. Ba3 {[%clk 0:01:11]}  Bxd5 {[%clk 0:00:58]} 30. Rd1 {[%clk 0:01:07]}  Be6 {[%clk 0:00:54]} 31. Bxd6 {[%clk 0:01:06]}  Bxd6 {[%clk 0:00:50]} 32. Rxd6 {[%clk 0:01:07]}  a5 {[%clk 0:00:50]} 33. Rd8+ {[%clk 0:01:06]}  Kg7 {[%clk 0:00:49]} 34. Ra8 {[%clk 0:01:07]}  Rb4 {[%clk 0:00:46]} 35. Ra6 {[%clk 0:00:51]}  e4 {[%clk 0:00:42]} 36. Ne5 {[%clk 0:00:50]}  Rb5 {[%clk 0:00:24]} 37. Nec4 {[%clk 0:00:49]}  Nd5 {[%clk 0:00:20]} 38. Nxd5 {[%clk 0:00:42]}  Bxd5 {[%clk 0:00:21]} 39. Nxa5 {[%clk 0:00:40]}  Rb1+ {[%clk 0:00:21]} 40. Kh2 {[%clk 0:00:41]}  Ra1 {[%clk 0:00:22]} 41. Ra7 {[%clk 0:00:41]}  h5 {[%clk 0:00:16]} 42. Nc6 {[%clk 0:00:40]}  Rxa7 {[%clk 0:00:15]} 43. Nxa7 {[%clk 0:00:41]}  Kf6 {[%clk 0:00:14]} 44. Nb5 {[%clk 0:00:41]}  Ke5 {[%clk 0:00:15]} 45. Kg3 {[%clk 0:00:40]}  Bc4 {[%clk 0:00:14]} 46. Nc3 {[%clk 0:00:38]}  f5 {[%clk 0:00:12]} 47. Kh4 {[%clk 0:00:32]}  Kd4 {[%clk 0:00:12]} 48. Nd1 {[%clk 0:00:32]}  f4 {[%clk 0:00:11]} 49. Kg5 {[%clk 0:00:31]}  Bb3 {[%clk 0:00:11]} 50. Kxf4 {[%clk 0:00:12]}  Bxd1 {[%clk 0:00:11]} 51. Kg5 {[%clk 0:00:13]}  Bc2 {[%clk 0:00:12]} 52. Kf4 {[%clk 0:00:11]}  Kd5 {[%clk 0:00:09]} 53. g4 {[%clk 0:00:09]}  hxg4 {[%clk 0:00:08]} 54. hxg4 {[%clk 0:00:10]}  Kd4 {[%clk 0:00:08]} 55. Kg5 {[%clk 0:00:09]}  e3 {[%clk 0:00:08]} 56. fxe3+ {[%clk 0:00:09]}  Kxe3 {[%clk 0:00:09]} 57. Kh6 {[%clk 0:00:09]}  Kf4 {[%clk 0:00:09]} 58. g5 {[%clk 0:00:09]}  Kg4 {[%clk 0:00:09]} 0-1


[Site "https://www.chess.com"]

[Event "Titled Tuesday Blitz March 28 Late 2023"]
[White "Bartel, Mateusz"]
[Black "Remolar Gallen, Jose"]
[WhiteFideId "1112635"]
[BlackFideId "2215187"]
[WhiteElo "2521"]
[BlackElo "2223"]
[Result "1-0"]
[Round "03"]
[TimeControl "180+2"]
[Date "2023.03.28"]
[WhiteClock "0:00:16"]
[BlackClock "0:00:02"]

1. e4 {[%clk 0:03:00]}  c5 {[%clk 0:02:59]} 2. Nf3 {[%clk 0:02:59]}  d6 {[%clk 0:03:00]} 3. c3 {[%clk 0:02:55]}  Nf6 {[%clk 0:03:00]} 4. Bd3 {[%clk 0:02:51]}  Nc6 {[%clk 0:02:54]} 5. Bc2 {[%clk 0:02:50]}  Bg4 {[%clk 0:02:53]} 6. d3 {[%clk 0:02:48]}  e6 {[%clk 0:02:51]} 7. Nbd2 {[%clk 0:02:48]}  Be7 {[%clk 0:02:52]} 8. h3 {[%clk 0:02:47]}  Bh5 {[%clk 0:02:52]} 9. Qe2 {[%clk 0:02:44]}  Rb8 {[%clk 0:02:36]} 10. a4 {[%clk 0:02:38]}  a6 {[%clk 0:02:35]} 11. Nf1 {[%clk 0:02:38]}  b5 {[%clk 0:02:29]} 12. axb5 {[%clk 0:02:37]}  axb5 {[%clk 0:02:30]} 13. Ng3 {[%clk 0:02:35]}  Bg6 {[%clk 0:02:30]} 14. O-O {[%clk 0:02:35]}  O-O {[%clk 0:02:29]} 15. Bf4 {[%clk 0:02:21]}  Nh5 {[%clk 0:02:14]} 16. Nxh5 {[%clk 0:02:00]}  Bxh5 {[%clk 0:02:15]} 17. Qe3 {[%clk 0:02:00]}  Bf6 {[%clk 0:02:06]} 18. e5 {[%clk 0:01:55]}  dxe5 {[%clk 0:01:36]} 19. Nxe5 {[%clk 0:01:56]}  Nxe5 {[%clk 0:01:33]} 20. Bxe5 {[%clk 0:01:57]}  Bxe5 {[%clk 0:01:31]} 21. Qxe5 {[%clk 0:01:56]}  Qd5 {[%clk 0:01:30]} 22. Rfe1 {[%clk 0:01:50]}  Bg6 {[%clk 0:01:23]} 23. Qxd5 {[%clk 0:01:38]}  exd5 {[%clk 0:01:23]} 24. Ra5 {[%clk 0:01:19]}  h5 {[%clk 0:01:10]} 25. Kf1 {[%clk 0:01:19]}  Rfd8 {[%clk 0:00:59]} 26. Ke2 {[%clk 0:01:13]}  d4 {[%clk 0:00:44]} 27. Kd2 {[%clk 0:01:06]}  c4 {[%clk 0:00:39]} 28. cxd4 {[%clk 0:00:55]}  Rxd4 {[%clk 0:00:33]} 29. Kc3 {[%clk 0:00:43]}  Rbd8 {[%clk 0:00:31]} 30. Rd1 {[%clk 0:00:16]}  b4+ {[%clk 0:00:17]} 31. Kd2 {[%clk 0:00:16]}  Bxd3 {[%clk 0:00:13]} 32. Kc1 {[%clk 0:00:16]}  Bxc2 {[%clk 0:00:09]} 33. Rxd4 {[%clk 0:00:16]}  Rxd4 {[%clk 0:00:10]} 34. Kxc2 {[%clk 0:00:16]}  h4 {[%clk 0:00:08]} 35. Rb5 {[%clk 0:00:16]}  b3+ {[%clk 0:00:06]} 36. Kc3 {[%clk 0:00:16]}  Rf4 {[%clk 0:00:06]} 37. f3 {[%clk 0:00:16]}  f6 {[%clk 0:00:02]} 38. Rc5 {[%clk 0:00:16]}  g5 {[%clk 0:00:02]} 39. Rxc4 {[%clk 0:00:17]}  Kf7 {[%clk 0:00:01]} 40. Rxf4 {[%clk 0:00:16]}  gxf4 {[%clk 0:00:02]} 41. Kxb3 {[%clk 0:00:16]} 1-0


[Site "https://www.chess.com"]

[Event "Titled Tuesday Blitz March 28 Late 2023"]
[White "Pakleza, Zbigniew"]
[Black "Petukhov, Dmitry"]
[WhiteFideId "1119290"]
[BlackFideId "4142748"]
[WhiteElo "2410"]
[BlackElo "2311"]
[Result "1-0"]
[Round "03"]
[TimeControl "180+2"]
[Date "2023.03.28"]
[WhiteClock "0:00:07"]
[BlackClock "0:00:02"]

1. d4 {[%clk 0:03:00]}  Nf6 {[%clk 0:02:58]} 2. Nf3 {[%clk 0:03:01]}  g6 {[%clk 0:02:58]} 3. Bf4 {[%clk 0:03:01]}  Bg7 {[%clk 0:02:58]} 4. e3 {[%clk 0:03:02]}  d6 {[%clk 0:02:59]} 5. h3 {[%clk 0:03:02]}  O-O {[%clk 0:02:58]} 6. Be2 {[%clk 0:03:03]}  Re8 {[%clk 0:02:27]} 7. c4 {[%clk 0:03:00]}  c5 {[%clk 0:02:26]} 8. Nc3 {[%clk 0:03:00]}  cxd4 {[%clk 0:02:24]} 9. exd4 {[%clk 0:03:00]}  Nc6 {[%clk 0:02:25]} 10. O-O {[%clk 0:03:01]}  Bf5 {[%clk 0:02:25]} 11. d5 {[%clk 0:02:54]}  Nb8 {[%clk 0:02:24]} 12. Nd4 {[%clk 0:02:45]}  Bd7 {[%clk 0:02:23]} 13. a3 {[%clk 0:02:36]}  a5 {[%clk 0:02:23]} 14. Rb1 {[%clk 0:02:19]}  a4 {[%clk 0:02:20]} 15. Ndb5 {[%clk 0:02:15]}  Ra5 {[%clk 0:02:06]} 16. Re1 {[%clk 0:02:00]}  Na6 {[%clk 0:02:05]} 17. Bd2 {[%clk 0:02:00]}  Nc5 {[%clk 0:02:02]} 18. Be3 {[%clk 0:01:31]}  Nfe4 {[%clk 0:01:45]} 19. Nxe4 {[%clk 0:01:19]}  Nxe4 {[%clk 0:01:45]} 20. Nd4 {[%clk 0:01:10]}  Qc7 {[%clk 0:01:34]} 21. Bf1 {[%clk 0:01:09]}  Nc5 {[%clk 0:01:27]} 22. Qd2 {[%clk 0:01:00]}  Bxd4 {[%clk 0:01:24]} 23. Qxd4 {[%clk 0:00:56]}  Nb3 {[%clk 0:01:25]} 24. Qc3 {[%clk 0:00:25]}  Bf5 {[%clk 0:01:23]} 25. Rbd1 {[%clk 0:00:25]}  Rc8 {[%clk 0:01:13]} 26. g4 {[%clk 0:00:24]}  Bd7 {[%clk 0:01:11]} 27. Qb4 {[%clk 0:00:20]}  Ra6 {[%clk 0:01:07]} 28. f3 {[%clk 0:00:19]}  Nc5 {[%clk 0:01:06]} 29. Rd2 {[%clk 0:00:15]}  Rb6 {[%clk 0:01:07]} 30. Qc3 {[%clk 0:00:16]}  Rb3 {[%clk 0:01:08]} 31. Qd4 {[%clk 0:00:16]}  b5 {[%clk 0:01:04]} 32. Rc1 {[%clk 0:00:12]}  bxc4 {[%clk 0:01:03]} 33. Bxc4 {[%clk 0:00:04]}  Rbb8 {[%clk 0:00:59]} 34. Bf1 {[%clk 0:00:02]}  Qb7 {[%clk 0:00:58]} 35. Qf4 {[%clk 0:00:01]}  Nb3 {[%clk 0:00:58]} 36. Rxc8+ {[%clk 0:00:02]}  Rxc8 {[%clk 0:00:58]} 37. Re2 {[%clk 0:00:03]}  Bb5 {[%clk 0:00:58]} 38. Re1 {[%clk 0:00:03]}  Bxf1 {[%clk 0:00:59]} 39. Kxf1 {[%clk 0:00:03]}  Rc2 {[%clk 0:00:58]} 40. Bf2 {[%clk 0:00:03]}  Nd2+ {[%clk 0:00:55]} 41. Kg2 {[%clk 0:00:04]}  Qxb2 {[%clk 0:00:56]} 42. Rxe7 {[%clk 0:00:03]}  Nc4 {[%clk 0:00:49]} 43. Re8+ {[%clk 0:00:03]}  Kg7 {[%clk 0:00:49]} 44. Qg3 {[%clk 0:00:03]}  Qd4 {[%clk 0:00:41]} 45. Re4 {[%clk 0:00:03]}  Qf6 {[%clk 0:00:38]} 46. g5 {[%clk 0:00:03]}  Qb2 {[%clk 0:00:36]} 47. Qh4 {[%clk 0:00:03]}  Ne5 {[%clk 0:00:34]} 48. f4 {[%clk 0:00:03]}  Qb3 {[%clk 0:00:20]} 49. fxe5 {[%clk 0:00:03]}  Qxd5 {[%clk 0:00:21]} 50. exd6 {[%clk 0:00:03]}  Re2 {[%clk 0:00:19]} 51. Kf3 {[%clk 0:00:03]}  Qd3+ {[%clk 0:00:19]} 52. Be3 {[%clk 0:00:03]}  Rxe3+ {[%clk 0:00:15]} 53. Rxe3 {[%clk 0:00:04]}  Qd1+ {[%clk 0:00:15]} 54. Kf2 {[%clk 0:00:04]}  Qc2+ {[%clk 0:00:14]} 55. Re2 {[%clk 0:00:03]}  Qf5+ {[%clk 0:00:14]} 56. Kg2 {[%clk 0:00:03]}  h5 {[%clk 0:00:13]} 57. gxh6+ {[%clk 0:00:03]}  Kh7 {[%clk 0:00:13]} 58. Qg4 {[%clk 0:00:03]}  Qd5+ {[%clk 0:00:13]} 59. Qf3 {[%clk 0:00:04]}  Qg5+ {[%clk 0:00:12]} 60. Kh1 {[%clk 0:00:04]}  Qc1+ {[%clk 0:00:12]} 61. Kh2 {[%clk 0:00:04]}  Qc5 {[%clk 0:00:10]} 62. Rd2 {[%clk 0:00:04]}  Qg5 {[%clk 0:00:09]} 63. Qf2 {[%clk 0:00:04]}  Qe5+ {[%clk 0:00:09]} 64. Kg1 {[%clk 0:00:04]}  Qg5+ {[%clk 0:00:09]} 65. Kf1 {[%clk 0:00:05]}  Qb5+ {[%clk 0:00:09]} 66. Ke1 {[%clk 0:00:05]}  Qb1+ {[%clk 0:00:09]} 67. Rd1 {[%clk 0:00:06]}  Qe4+ {[%clk 0:00:08]} 68. Qe2 {[%clk 0:00:06]}  Qh1+ {[%clk 0:00:06]} 69. Kf2 {[%clk 0:00:06]}  Qh2+ {[%clk 0:00:05]} 70. Ke3 {[%clk 0:00:07]}  Qe5+ {[%clk 0:00:05]} 71. Kd2 {[%clk 0:00:06]}  Qd4+ {[%clk 0:00:03]} 72. Qd3 {[%clk 0:00:06]}  Qb2+ {[%clk 0:00:02]} 73. Ke3 {[%clk 0:00:06]}  Qe5+ {[%clk 0:00:02]} 74. Kf3 {[%clk 0:00:07]} 1-0


[Site "https://www.chess.com"]

[Event "Titled Tuesday Blitz March 28 Late 2023"]
[White "Perez Ponsa, Federico"]
[Black "Pasti, Aron"]
[WhiteFideId "117927"]
[BlackFideId "785857"]
[WhiteElo "2592"]
[BlackElo "2173"]
[Result "1-0"]
[Round "03"]
[TimeControl "180+2"]
[Date "2023.03.28"]
[WhiteClock "0:01:04"]
[BlackClock "0:01:20"]

1. e4 {[%clk 0:02:37]}  c5 {[%clk 0:02:59]} 2. Nf3 {[%clk 0:01:58]}  e6 {[%clk 0:02:55]} 3. d4 {[%clk 0:01:58]}  cxd4 {[%clk 0:02:54]} 4. Nxd4 {[%clk 0:01:59]}  Nc6 {[%clk 0:02:53]} 5. Nc3 {[%clk 0:01:59]}  Qc7 {[%clk 0:02:52]} 6. Be3 {[%clk 0:01:59]}  a6 {[%clk 0:02:51]} 7. Qd2 {[%clk 0:01:59]}  Nf6 {[%clk 0:02:49]} 8. f4 {[%clk 0:01:59]}  Bb4 {[%clk 0:02:45]} 9. Bd3 {[%clk 0:02:00]}  Na5 {[%clk 0:02:44]} 10. a3 {[%clk 0:01:57]}  Bxc3 {[%clk 0:02:43]} 11. Qxc3 {[%clk 0:01:58]}  Qxc3+ {[%clk 0:02:43]} 12. bxc3 {[%clk 0:01:59]}  d5 {[%clk 0:02:40]} 13. exd5 {[%clk 0:01:57]}  Nxd5 {[%clk 0:02:40]} 14. Bd2 {[%clk 0:01:57]}  Nc6 {[%clk 0:02:33]} 15. Nxc6 {[%clk 0:01:48]}  bxc6 {[%clk 0:02:34]} 16. c4 {[%clk 0:01:49]}  Ne7 {[%clk 0:02:31]} 17. Bb4 {[%clk 0:01:47]}  Bb7 {[%clk 0:02:27]} 18. Bc5 {[%clk 0:01:44]}  Rd8 {[%clk 0:02:24]} 19. Rb1 {[%clk 0:01:43]}  Rd7 {[%clk 0:02:22]} 20. Kf2 {[%clk 0:01:40]}  O-O {[%clk 0:01:56]} 21. Rb3 {[%clk 0:01:36]}  Ng6 {[%clk 0:01:35]} 22. Bxg6 {[%clk 0:01:17]}  hxg6 {[%clk 0:01:32]} 23. Bxf8 {[%clk 0:01:18]}  Kxf8 {[%clk 0:01:32]} 24. Rhb1 {[%clk 0:01:17]}  Bc8 {[%clk 0:01:32]} 25. Rb8 {[%clk 0:01:17]}  Rc7 {[%clk 0:01:32]} 26. Ke3 {[%clk 0:01:17]}  Ke7 {[%clk 0:01:33]} 27. c5 {[%clk 0:01:16]}  f6 {[%clk 0:01:29]} 28. Rd1 {[%clk 0:01:16]}  e5 {[%clk 0:01:27]} 29. Rd6 {[%clk 0:01:15]}  Be6 {[%clk 0:01:23]} 30. fxe5 {[%clk 0:01:13]}  fxe5 {[%clk 0:01:23]} 31. Rb6 {[%clk 0:01:13]}  Bd5 {[%clk 0:01:20]} 32. Rxa6 {[%clk 0:01:10]}  Rb7 {[%clk 0:01:21]} 33. Rxg6 {[%clk 0:01:04]}  Kf7 {[%clk 0:01:20]} 1-0


[Site "https://www.chess.com"]

[Event "Titled Tuesday Blitz March 28 Late 2023"]
[White "Godzwon, Iwo"]
[Black "Kramnik, Vladimir"]
[WhiteFideId "21802483"]
[BlackFideId "4101588"]
[WhiteElo "2284"]
[BlackElo "2712"]
[Result "1-0"]
[Round "03"]
[TimeControl "180+2"]
[Date "2023.03.28"]
[WhiteClock "0:00:06"]
[BlackClock "0:00:04"]

1. e4 {[%clk 0:03:00]}  c5 {[%clk 0:02:59]} 2. Nf3 {[%clk 0:02:58]}  e6 {[%clk 0:03:00]} 3. d4 {[%clk 0:02:58]}  cxd4 {[%clk 0:02:59]} 4. Nxd4 {[%clk 0:02:59]}  a6 {[%clk 0:02:59]} 5. c4 {[%clk 0:02:59]}  Nf6 {[%clk 0:02:58]} 6. Nc3 {[%clk 0:02:58]}  Qc7 {[%clk 0:02:59]} 7. Be2 {[%clk 0:02:51]}  Bb4 {[%clk 0:02:57]} 8. Nc2 {[%clk 0:02:51]}  Be7 {[%clk 0:02:48]} 9. O-O {[%clk 0:02:47]}  O-O {[%clk 0:02:47]} 10. Be3 {[%clk 0:02:29]}  d6 {[%clk 0:02:45]} 11. Rc1 {[%clk 0:02:25]}  b6 {[%clk 0:02:44]} 12. f4 {[%clk 0:02:24]}  Bb7 {[%clk 0:02:43]} 13. Bf3 {[%clk 0:02:21]}  Nbd7 {[%clk 0:02:42]} 14. Nd4 {[%clk 0:02:03]}  Rfe8 {[%clk 0:02:39]} 15. g4 {[%clk 0:02:02]}  Nc5 {[%clk 0:02:36]} 16. Qc2 {[%clk 0:02:02]}  e5 {[%clk 0:02:29]} 17. Nf5 {[%clk 0:02:01]}  exf4 {[%clk 0:02:28]} 18. Bxf4 {[%clk 0:02:02]}  Bf8 {[%clk 0:02:22]} 19. Nd5 {[%clk 0:01:59]}  Bxd5 {[%clk 0:02:14]} 20. exd5 {[%clk 0:01:56]}  a5 {[%clk 0:01:47]} 21. Rce1 {[%clk 0:01:47]}  g6 {[%clk 0:01:41]} 22. Nd4 {[%clk 0:01:44]}  Qd7 {[%clk 0:01:32]} 23. h3 {[%clk 0:01:34]}  Rxe1 {[%clk 0:01:26]} 24. Rxe1 {[%clk 0:01:33]}  Re8 {[%clk 0:01:27]} 25. Rxe8 {[%clk 0:01:20]}  Qxe8 {[%clk 0:01:26]} 26. Nb5 {[%clk 0:01:18]}  Qe1+ {[%clk 0:01:21]} 27. Kg2 {[%clk 0:01:18]}  Nfe4 {[%clk 0:01:18]} 28. Qe2 {[%clk 0:01:11]}  Qb1 {[%clk 0:01:11]} 29. Na3 {[%clk 0:01:08]}  Qxa2 {[%clk 0:00:52]} 30. Bxe4 {[%clk 0:01:07]}  Nxe4 {[%clk 0:00:52]} 31. Qxe4 {[%clk 0:01:08]}  Qxb2+ {[%clk 0:00:52]} 32. Nc2 {[%clk 0:01:08]}  a4 {[%clk 0:00:52]} 33. Be3 {[%clk 0:01:04]}  a3 {[%clk 0:00:46]} 34. Bd4 {[%clk 0:01:04]}  Qb3 {[%clk 0:00:45]} 35. Ba1 {[%clk 0:01:01]}  a2 {[%clk 0:00:33]} 36. Ne3 {[%clk 0:00:47]}  Bg7 {[%clk 0:00:21]} 37. Qe8+ {[%clk 0:00:43]}  Bf8 {[%clk 0:00:21]} 38. Qe4 {[%clk 0:00:11]}  Qb1 {[%clk 0:00:21]} 39. Qd4 {[%clk 0:00:11]}  f6 {[%clk 0:00:22]} 40. g5 {[%clk 0:00:07]}  Be7 {[%clk 0:00:12]} 41. Ng4 {[%clk 0:00:05]}  Qc2+ {[%clk 0:00:09]} 42. Kf3 {[%clk 0:00:06]}  Kf7 {[%clk 0:00:09]} 43. gxf6 {[%clk 0:00:06]}  Bf8 {[%clk 0:00:08]} 44. Qe4 {[%clk 0:00:05]}  Qb3+ {[%clk 0:00:05]} 45. Ne3 {[%clk 0:00:06]}  Qb1 {[%clk 0:00:04]} 46. Qe6# {[%clk 0:00:06]} 1-0


[Site "https://www.chess.com"]

[Event "Titled Tuesday Blitz March 28 Late 2023"]
[White "Sjugirov, Sanan"]
[Black "Volkov, Maksim"]
[WhiteFideId "4189302"]
[BlackFideId "54123070"]
[WhiteElo "2569"]
[BlackElo "2312"]
[Result "1-0"]
[Round "03"]
[TimeControl "180+2"]
[Date "2023.03.28"]
[WhiteClock "0:02:27"]
[BlackClock "0:01:46"]

1. e4 {[%clk 0:03:00]}  c5 {[%clk 0:02:59]} 2. Nf3 {[%clk 0:02:59]}  d6 {[%clk 0:03:00]} 3. Bb5+ {[%clk 0:02:57]}  Nd7 {[%clk 0:02:59]} 4. d4 {[%clk 0:02:57]}  cxd4 {[%clk 0:02:59]} 5. Qxd4 {[%clk 0:02:58]}  a6 {[%clk 0:02:58]} 6. Bxd7+ {[%clk 0:02:58]}  Bxd7 {[%clk 0:02:58]} 7. O-O {[%clk 0:02:58]}  e6 {[%clk 0:02:57]} 8. c4 {[%clk 0:02:57]}  Nf6 {[%clk 0:02:54]} 9. Nc3 {[%clk 0:02:57]}  Be7 {[%clk 0:02:52]} 10. Rd1 {[%clk 0:02:56]}  O-O {[%clk 0:02:50]} 11. Qd3 {[%clk 0:02:54]}  Bc6 {[%clk 0:02:48]} 12. Bf4 {[%clk 0:02:54]}  Qb6 {[%clk 0:02:40]} 13. b3 {[%clk 0:02:51]}  Rad8 {[%clk 0:02:36]} 14. h3 {[%clk 0:02:44]}  Qa5 {[%clk 0:02:27]} 15. Rac1 {[%clk 0:02:42]}  d5 {[%clk 0:02:21]} 16. cxd5 {[%clk 0:02:40]}  exd5 {[%clk 0:02:21]} 17. e5 {[%clk 0:02:41]}  Ne4 {[%clk 0:02:21]} 18. Nd4 {[%clk 0:02:39]}  Bb4 {[%clk 0:02:04]} 19. Nxc6 {[%clk 0:02:28]}  Nxc3 {[%clk 0:01:46]} 20. Nxa5 {[%clk 0:02:27]} 1-0


[Site "https://www.chess.com"]